bitfinex-derivatives/quotes_SOLF0:USTF0_20241120
["timestamp","ask_amount","ask_price","bid_price","bid_amount"]
[1732102131294,8.7975,236.37,236.23,10.30874088]
[1732102131795,6.5175,236.37,236.23,10.30874088]
[1732102133390,6.5175,236.37,236.26,10.30874088]
[1732102133391,2.8763,236.37,236.26,10.30874088]
[1732102133598,2.8763,236.37,236.27,2.28]
[1732102135392,2.28,236.43,236.27,2.28]
[1732102135597,10.30874088,236.44,236.29,10.30874088]
[1732102135798,28.14815919,236.43,236.29,10.30874088]
[1732102136100,1.7708,236.45,236.29,10.30874088]
[1732102136295,29.92002468,236.45,236.29,10.30874088]
[1732102136601,28.14922468,236.44,236.29,10.30874088]
[1732102136901,18.86223909,236.43,236.29,10.30874088]
[1732102137103,1.7708,236.45,236.29,10.30874088]
[1732102141904,1.7708,236.45,236.32,10.30874088]
[1732102142097,1.7708,236.45,236.33,2.28]
[1732102144605,10.30874088,236.43,236.28,5.2728]
[1732102144811,10.30874088,236.43,236.29,2.28]
[1732102146208,10.30874088,236.43,236.28,5.2728]
[1732102146511,10.30874088,236.43,236.29,2.28]
[1732102148613,10.52649215,236.42,236.29,2.28]
[1732102151914,10.52649215,236.42,236.29,12.58874088]
[1732102152217,14.35954088,236.45,236.29,12.58874088]
[1732102152409,28.21247679,236.44,236.29,12.58874088]
[1732102152614,6.59531498,236.42,236.33,6.59531498]
[1732102152816,6.59531498,236.38,236.29,2.28]
[1732102153013,6.59531498,236.38,236.3,6.59531498]
[1732102153213,6.59531498,236.4,236.3,6.59531498]
[1732102153413,6.59531498,236.4,236.3,8.87531498]
[1732102153614,6.59531498,236.4,236.3,2.28]
[1732102153812,6.59531498,236.38,236.3,8.87531498]
[1732102156114,6.59531498,236.38,236.3,2.28]
[1732102156318,6.59531498,236.38,236.28,6.59531498]
[1732102156319,6.59531498,236.36,236.26,2.28]
[1732102156517,6.59531498,236.34,236.26,8.87531498]
[1732102156720,6.59531498,236.34,236.26,6.59531498]
[1732102157015,2.09177331,236.44,236.25,8.87531498]
[1732102157222,2.09177331,236.44,236.27,6.59531498]
[1732102157223,6.59531498,236.36,236.27,6.59531498]
[1732102159227,2.28,236.43,236.29,6.59531498]
[1732102159522,6.59531498,236.41,236.32,6.59531498]
[1732102159717,6.59531498,236.39,236.32,2.28]
[1732102159917,6.59531498,236.37,236.32,2.28]
[1732102160519,6.59531498,236.39,236.32,2.28]
[1732102161424,6.59531498,236.37,236.32,2.28]
[1732102161822,6.59531498,236.39,236.32,2.28]
[1732102163723,1.7708,236.45,236.32,2.28]
[1732102163918,6.59531498,236.42,236.32,8.87531498]
[1732102164118,6.59531498,236.42,236.34,6.59531498]
[1732102164314,6.59531498,236.44,236.34,6.59531498]
[1732102164516,6.59531498,236.42,236.32,8.87531498]
[1732102165224,6.59531498,236.4,236.32,8.87531498]
[1732102169219,231.5418664,236.52,236.39,6.59531498]
[1732102169421,6.59531498,236.5,236.41,6.59531498]
[1732102169626,28.24590666,236.49,236.41,8.87531498]
[1732102169827,28.24590666,236.48,236.41,8.87531498]
[1732102170019,19.8688786,236.47,236.41,8.87531498]
[1732102170226,6.59531498,236.5,236.41,8.87531498]
[1732102170429,28.237409,236.49,236.41,8.87531498]
[1732102170618,10.5470429,236.48,236.41,8.87531498]
[1732102170825,6.59531498,236.5,236.41,8.87531498]
[1732102171027,28.23739295,236.49,236.41,8.87531498]
[1732102171227,6.59531498,236.46,236.41,2.28]
[1732102171429,5.6493,236.54,236.41,8.87531498]
[1732102171628,6.59531498,236.49,236.41,8.87531498]
[1732102173831,231.5418664,236.58,236.46,6.59531498]
[1732102174028,6.59531498,236.56,236.48,6.59531498]
[1732102174229,28.2186131,236.55,236.49,2.28]
[1732102174528,6.59531498,236.56,236.49,2.28]
[1732102174731,0.28235,236.6,236.49,2.28]
[1732102174732,6.59531498,236.54,236.49,2.28]
[1732102175834,6.59531498,236.54,236.46,6.59531498]
[1732102176028,6.59531498,236.54,236.47,2.28]
[1732102176224,6.59531498,236.54,236.48,2.28]
[1732102176832,10.52361086,236.53,236.48,2.28]
[1732102177027,6.59531498,236.52,236.45,2.28]
[1732102177625,0.28235,236.6,236.51,6.59531498]
[1732102177933,28.45791034,236.6,236.51,8.87531498]
[1732102178232,34.77087532,236.59,236.51,8.87531498]
[1732102178433,28.17556034,236.58,236.51,2.28]
[1732102178635,2.14205,236.6,236.51,2.28]
[1732102178826,17.64429478,236.59,236.51,2.28]
[1732102179132,28.163945,236.58,236.51,2.28]
[1732102179327,19.81098546,236.57,236.51,2.28]
[1732102179528,2.14205,236.6,236.51,2.28]
[1732102179728,9.2898416,236.59,236.51,2.28]
[1732102179930,10.51791361,236.58,236.51,2.28]
[1732102180825,1.8597,236.6,236.51,2.28]
[1732102181328,30.00976021,236.6,236.51,2.28]
[1732102181530,28.15006021,236.59,236.51,2.28]
[1732102181726,10.51100303,236.58,236.51,2.28]
[1732102181929,1.8597,236.6,236.51,2.28]
[1732102182329,30.00285217,236.6,236.51,2.28]
[1732102182535,28.14315217,236.59,236.51,2.28]
[1732102182730,9.28452694,236.58,236.51,2.28]
[1732102182936,28.13839011,236.57,236.51,2.28]
[1732102183235,28.13839011,236.56,236.51,2.28]
[1732102183431,10.50932574,236.55,236.51,2.28]
[1732102183933,1.8597,236.6,236.51,2.28]
[1732102184129,29.98749309,236.6,236.51,2.28]
[1732102184332,19.7839961,236.59,236.51,2.28]
[1732102184530,19.7839961,236.58,236.51,2.28]
[1732102184838,28.12779309,236.57,236.51,2.28]
[1732102185033,28.12779309,236.56,236.51,2.28]
[1732102185238,10.50529211,236.55,236.51,2.28]
[1732102185537,12.40892628,236.67,236.53,10.29118661]
[1732102185732,10.29118661,236.64,236.51,2.28]
[1732102185934,10.29118661,236.64,236.52,2.28]
[1732102187635,19.77197461,236.63,236.52,2.28]
[1732102187833,10.49826812,236.62,236.52,2.28]
[1732102188033,10.49826812,236.62,236.53,10.29118661]
[1732102188232,19.77197461,236.62,236.53,10.29118661]
[1732102188438,10.29118661,236.7,236.53,10.29118661]
[1732102188737,28.09739118,236.69,236.53,10.29118661]
[1732102189032,28.09739118,236.68,236.53,10.29118661]
[1732102189245,28.09739118,236.67,236.53,10.29118661]
[1732102189442,28.09739118,236.66,236.52,2.28]
[1732102189741,28.09739118,236.65,236.52,2.28]
[1732102189941,18.8281081,236.64,236.52,2.28]
[1732102190137,8.33324203,236.64,236.54,10.29118661]
[1732102190440,1.7316,236.65,236.54,10.29118661]
[1732102190844,19.75136546,236.65,236.57,10.29118661]
[1732102191037,12.57118661,236.73,236.6,10.29118661]
[1732102191240,28.08445524,236.72,236.61,2.28]
[1732102191437,237.0581664,236.74,236.61,2.28]
[1732102191438,28.56218524,236.71,236.61,2.28]
[1732102191640,20.232696,236.71,236.61,2.28]
[1732102191839,0.47773,236.71,236.61,2.28]
[1732102193140,0.47773,236.71,236.63,10.29118661]
[1732102196138,0.47773,236.71,236.61,2.28]
[1732102196334,0.47773,236.71,236.57,10.29118661]
[1732102196634,0.47773,236.71,236.58,2.28]
[1732102196942,10.76891661,236.71,236.58,2.28]
[1732102197336,10.76891661,236.71,236.59,2.28]
[1732102197543,10.76891661,236.71,236.6,2.28]
[1732102198636,6.58108684,236.68,236.6,8.86108684]
[1732102199040,6.58108684,236.66,236.6,2.28]
[1732102200550,6.58108684,236.66,236.58,6.58108684]
[1732102200746,10.28412928,236.7,236.59,2.28]
[1732102201041,10.28412928,236.7,236.6,2.28]
[1732102202049,5.5163,236.74,236.6,2.28]
[1732102202248,10.28412928,236.69,236.6,2.28]
[1732102203050,5.5163,236.74,236.6,2.28]
[1732102203251,3.6101,236.74,236.61,10.28412928]
[1732102203857,4.1387,236.79,236.64,10.28412928]
[1732102204049,10.28412928,236.74,236.62,1.8312]
[1732102204345,28.0059796,236.78,236.62,1.8312]
[1732102204346,12.56412928,236.79,236.63,12.56412928]
[1732102204548,9.78920415,236.78,236.63,12.56412928]
[1732102204744,20.25098653,236.78,236.63,12.56412928]
[1732102204947,0.54963,236.78,236.63,12.56412928]
[1732102205452,10.28412928,236.76,236.63,2.28]
[1732102206052,10.28412928,236.76,236.64,2.28]
[1732102206552,10.28412928,236.76,236.62,1.8312]
[1732102206745,0.54963,236.78,236.62,2.28]
[1732102206746,10.28412928,236.73,236.62,2.28]
[1732102206951,5.2951,236.72,236.62,2.28]
[1732102207153,5.2951,236.72,236.58,2.28]
[1732102207154,10.28412928,236.7,236.58,2.28]
[1732102207348,10.28412928,236.7,236.54,1.802]
[1732102207549,10.28412928,236.7,236.56,2.28]
[1732102208044,1.0,236.71,236.56,2.28]
[1732102208245,10.28412928,236.7,236.56,2.28]
[1732102209853,1.0,236.71,236.56,2.28]
[1732102210054,10.28412928,236.7,236.56,2.28]
[1732102211253,10.28412928,236.67,236.51,10.28412928]
[1732102211452,10.28412928,236.67,236.28,12.7]
[1732102211453,10.28412928,236.61,236.45,7.4955]
[1732102211654,10.28412928,236.61,236.46,10.28412928]
[1732102211954,10.28412928,236.55,236.39,10.28412928]
[1732102212154,10.28412928,236.52,236.34,1.7458]
[1732102212354,1.7994,236.54,236.42,10.28412928]
[1732102212952,1.7994,236.54,236.42,12.56412928]
[1732102213257,231.5418664,236.61,236.46,10.28412928]
[1732102213458,14.04582928,236.63,236.46,10.28412928]
[1732102213858,16.32582928,236.63,236.46,10.28412928]
[1732102215960,3.7617,236.63,236.49,10.28412928]
[1732102216155,3.7617,236.63,236.5,2.28]
[1732102219360,10.28412928,236.6,236.44,3.6447]
[1732102219558,10.28412928,236.57,236.45,2.28]
[1732102219761,1.7851,236.56,236.45,2.28]
[1732102220059,1.7851,236.56,236.22,25.50356542]
[1732102220060,14.4651,236.56,236.22,25.50356542]
[1732102220360,10.28412928,236.49,236.31,10.28412928]
[1732102220555,2.28,236.48,236.31,10.28412928]
[1732102220761,2.28,236.48,236.31,12.56412928]
[1732102220963,10.28412928,236.49,236.31,12.56412928]
[1732102221162,3.6743,236.51,236.35,10.28412928]
[1732102221359,3.6743,236.51,236.39,10.28412928]
[1732102221662,2.28,236.51,236.39,10.28412928]
[1732102222052,1.7851,236.56,236.39,10.28412928]
[1732102222258,2.28,236.55,236.42,10.28412928]
[1732102223453,10.28412928,236.54,236.33,1.8095]
[1732102223653,10.28412928,236.51,236.35,10.28412928]
[1732102224354,10.28412928,236.51,236.35,12.56412928]
[1732102225157,1.0,236.54,236.39,10.28412928]
[1732102226458,1.0,236.54,236.35,2.28]
[1732102226459,10.28412928,236.52,236.36,10.28412928]
[1732102227159,1.0,236.54,236.39,10.28412928]
[1732102229459,1.0,236.54,236.42,10.28412928]
[1732102229766,1.7779,236.57,236.43,7.7908]
[1732102231357,1.7779,236.57,236.18,17.51173021]
[1732102231559,10.28412928,236.48,236.33,10.28412928]
[1732102231764,10.28412928,236.48,236.34,3.6422]
[1732102233564,10.28412928,236.48,236.35,2.44]
[1732102234862,10.28412928,236.45,236.12,12.68]
[1732102235064,2.44,236.44,236.3,1.7798]
[1732102235262,2.44,236.44,236.31,1.8217]
[1732102236971,14.46592928,236.48,236.32,10.28412928]
[1732102237172,14.46592928,236.48,236.32,12.11962928]
[1732102237367,1.7418,236.48,236.35,10.28412928]
[1732102237673,1.7418,236.48,236.36,2.44]
[1732102238169,10.28412928,236.51,236.36,2.44]
[1732102238373,10.28412928,236.48,236.36,2.44]
[1732102241975,1.0,236.5,236.36,2.44]
[1732102242171,1.0,236.5,236.37,10.28412928]
[1732102242376,12.72412928,236.54,236.37,10.28412928]
[1732102243268,10.28412928,236.54,236.37,10.28412928]
[1732102243878,10.28412928,236.54,236.4,10.28412928]
[1732102244377,3.6718,236.55,236.4,10.28412928]
[1732102244578,3.6718,236.55,236.43,10.28412928]
[1732102244779,3.6718,236.55,236.44,2.44]
[1732102245682,10.28412928,236.54,236.44,2.44]
[1732102247977,10.28412928,236.51,236.41,1.7549]
[1732102248276,10.28412928,236.51,236.06,251.38883077]
[1732102248277,10.28412928,236.48,236.35,2.44]
[1732102252180,10.28412928,236.48,236.16,10.28412928]
[1732102252374,10.28412928,236.48,236.3,10.28412928]
[1732102252578,10.28412928,236.48,236.31,2.44]
[1732102252778,10.28412928,236.45,236.31,2.44]
[1732102253384,10.28412928,236.45,236.3,10.28412928]
[1732102253584,10.28412928,236.45,236.31,2.44]
[1732102254184,10.28412928,236.45,236.31,4.2893]
[1732102254784,2.44,236.47,236.33,10.28412928]
[1732102256178,2.44,236.47,236.31,4.2893]
[1732102257185,2.44,236.47,236.31,7.9241]
[1732102260786,10.28412928,236.48,236.31,7.9241]
[1732102260787,12.74412928,236.48,236.31,7.9241]
[1732102263589,12.74412928,236.48,236.33,10.28412928]
[1732102263787,2.9046,236.5,236.36,10.28412928]
[1732102263989,10.28412928,236.48,236.37,2.46]
[1732102264191,2.9046,236.5,236.37,2.46]
[1732102264390,10.28412928,236.48,236.34,2.46]
[1732102265484,10.28412928,236.42,236.31,1.8493]
[1732102265689,10.28412928,236.42,236.24,10.28412928]
[1732102265892,10.28412928,236.42,236.25,2.46]
[1732102266083,2.9046,236.5,236.34,10.28412928]
[1732102266390,2.9046,236.5,236.37,10.28412928]
[1732102266593,3.5765,236.54,236.4,10.28412928]
[1732102266781,28.26799632,236.53,236.41,2.46]
[1732102266982,28.26799632,236.52,236.41,2.46]
[1732102267189,3.5765,236.54,236.41,2.46]
[1732102269186,0.31322,236.59,236.41,2.46]
[1732102269187,0.31322,236.59,236.5,10.28412928]
[1732102269383,0.31322,236.59,236.53,10.28412928]
[1732102269792,0.31322,236.59,236.56,10.28412928]
[1732102269983,0.31322,236.59,236.57,2.46]
[1732102270987,28.24465637,236.72,236.57,2.46]
[1732102271193,28.24465637,236.71,236.58,16.4503469]
[1732102271388,8.37724259,236.71,236.57,2.46]
[1732102271589,5.4839,236.74,236.57,2.46]
[1732102271894,28.21772421,236.73,236.57,2.46]
[1732102272088,28.21772421,236.72,236.57,2.46]
[1732102272292,19.83987283,236.71,236.57,2.46]
[1732102272593,28.20215344,236.7,236.57,2.46]
[1732102272794,28.20215344,236.69,236.57,2.46]
[1732102273092,21.9342469,236.74,236.57,2.46]
[1732102273287,28.19337865,236.73,236.57,2.46]
[1732102273487,16.4503469,236.7,236.52,5.4754]
[1732102273687,16.4503469,236.7,236.35,12.68]
[1732102273688,30.65337865,236.69,236.53,2.46]
[1732102273990,28.19337865,236.68,236.53,2.46]
[1732102274189,28.19337865,236.67,236.53,2.46]
[1732102274487,2.46,236.69,236.54,16.4503469]
[1732102274995,1.0,236.72,236.54,16.4503469]
[1732102275491,29.16086961,236.72,236.54,16.4503469]
[1732102275696,28.16086961,236.71,236.54,16.4503469]
[1732102275992,28.16086961,236.7,236.54,16.4503469]
[1732102276193,1.0,236.72,236.55,3.7567]
[1732102276594,29.13671336,236.72,236.58,16.4503469]
[1732102276795,28.13671336,236.71,236.59,2.46]
[1732102277095,1.0,236.72,236.59,2.46]
[1732102277096,10.5096829,236.7,236.59,2.46]
[1732102277295,1.0,236.72,236.59,2.46]
[1732102278094,5.4839,236.74,236.59,2.46]
[1732102278294,17.61697852,236.73,236.59,2.46]
[1732102278493,5.4839,236.74,236.59,2.46]
[1732102278691,28.10510923,236.73,236.59,2.46]
[1732102278894,5.4839,236.74,236.59,2.46]
[1732102279194,10.49834569,236.73,236.59,2.46]
[1732102279398,5.4839,236.74,236.59,2.46]
[1732102279697,5.4839,236.74,236.62,16.4503469]
[1732102280694,35.37040591,236.85,236.66,16.4503469]
[1732102280895,3.6165,236.81,236.67,2.46]
[1732102281497,3.6165,236.81,236.58,16.4503469]
[1732102281498,16.4503469,236.79,236.58,16.4503469]
[1732102281697,16.4503469,236.79,236.59,2.46]
[1732102282196,2.46,236.78,236.59,2.46]
[1732102283702,1.0,236.8,236.62,16.4503469]
[1732102286507,1.0,236.8,236.66,16.4503469]
[1732102286706,3.6165,236.81,236.67,2.4]
[1732102286907,3.6165,236.81,236.67,4.1866]
[1732102291911,3.6165,236.81,236.67,7.7027]
[1732102292811,1.8083,236.81,236.71,10.26962087]
[1732102293407,1.8495,236.84,236.71,10.26962087]
[1732102294715,1.8495,236.84,236.74,10.26962087]
[1732102294909,1.8495,236.84,236.75,2.4]
[1732102295105,1.7528,236.87,236.75,2.4]
[1732102295304,1.7528,236.87,236.77,10.26962087]
[1732102296807,1.7528,236.87,236.75,2.4]
[1732102296808,1.7528,236.87,236.8,10.26962087]
[1732102297911,1.839,236.91,236.81,2.4]
[1732102299917,3.97971428,236.91,236.81,2.4]
[1732102300121,1.839,236.91,236.81,2.4]
[1732102302621,3.5293,236.94,236.81,2.4]
[1732102303125,10.26962087,236.92,236.77,10.26962087]
[1732102303325,10.26962087,236.92,236.78,2.4]
[1732102306030,3.5293,236.94,236.8,10.26962087]
[1732102307629,3.5293,236.94,236.78,2.4]
[1732102307831,10.26962087,236.92,236.78,10.26962087]
[1732102308131,10.26962087,236.92,236.79,2.4]
[1732102308330,10.26962087,236.92,236.75,10.26962087]
[1732102308526,10.26962087,236.88,236.72,10.26962087]
[1732102308829,10.26962087,236.88,236.73,2.4]
[1732102309829,10.26962087,236.91,236.75,10.26962087]
[1732102310034,10.47190533,236.9,236.75,10.26962087]
[1732102310223,10.26962087,236.91,236.75,10.26962087]
[1732102310423,19.73920242,236.9,236.75,10.26962087]
[1732102310629,9.25705742,236.89,236.75,10.26962087]
[1732102310833,10.26962087,236.91,236.75,10.26962087]
[1732102311133,10.26962087,236.88,236.75,10.26962087]
[1732102312334,19.77302952,236.87,236.65,2.06895614]
[1732102312526,10.26962087,236.88,236.66,2.4]
[1732102312727,10.26962087,236.88,236.72,10.26962087]
[1732102312934,10.26962087,236.88,236.73,2.4]
[1732102313133,19.77325839,236.87,236.73,2.4]
[1732102313335,10.26962087,236.88,236.73,2.4]
[1732102313635,28.11273292,236.87,236.73,2.4]
[1732102313836,28.11273292,236.86,236.73,2.4]
[1732102314134,10.26962087,236.88,236.73,2.4]
[1732102314331,28.1365156,236.87,236.73,2.4]
[1732102314638,28.1365156,236.86,236.74,2.4]
[1732102314832,28.1365156,236.85,236.75,10.26962087]
[1732102315135,1.7727,236.89,236.75,10.26962087]
[1732102315537,29.92540183,236.89,236.75,10.26962087]
[1732102315733,38.4223227,236.88,236.75,10.26962087]
[1732102316039,38.4223227,236.88,236.74,2.4]
[1732102316040,28.15270183,236.87,236.74,2.4]
[1732102316237,28.15270183,236.86,236.74,2.4]
[1732102316533,28.15270183,236.85,236.74,2.4]
[1732102316737,10.26962087,236.88,236.74,2.4]
[1732102317039,28.16023039,236.87,236.74,2.4]
[1732102317234,28.16023039,236.86,236.74,2.4]
[1732102317440,20.78821902,236.85,236.75,2.32]
[1732102317641,10.51859815,236.84,236.75,2.32]
[1732102318038,12.17812087,236.85,236.71,10.26962087]
[1732102318239,12.17812087,236.85,236.72,2.32]
[1732102318743,12.17812087,236.85,236.73,2.32]
[1732102320447,1.9085,236.85,236.73,2.32]
[1732102320845,21.73595425,236.85,236.74,10.26962087]
[1732102321044,1.9085,236.85,236.74,10.26962087]
[1732102321248,28.18818301,236.87,236.74,10.26962087]
[1732102321446,1.7727,236.89,236.74,10.26962087]
[1732102321643,29.97375295,236.89,236.74,10.26962087]
[1732102321847,28.20105295,236.88,236.74,10.26962087]
[1732102322248,9.30268515,236.87,236.74,10.26962087]
[1732102322448,1.7727,236.89,236.74,10.26962087]
[1732102322649,29.98679912,236.89,236.74,10.26962087]
[1732102322849,28.21409912,236.88,236.74,10.26962087]
[1732102323050,19.84576382,236.87,236.74,10.26962087]
[1732102323247,1.7727,236.89,236.74,10.26962087]
[1732102323551,1.7727,236.89,236.77,10.26962087]
[1732102323851,29.98965029,236.89,236.77,10.26962087]
[1732102324049,28.21695029,236.88,236.77,10.26962087]
[1732102324251,28.22049786,236.87,236.77,10.26962087]
[1732102324445,10.26962087,236.91,236.77,10.26962087]
[1732102324652,28.23707016,236.9,236.8,10.26962087]
[1732102324850,28.23707016,236.89,236.81,2.32]
[1732102325049,266.8896005,236.93,236.81,2.32]
[1732102325250,28.23865368,236.92,236.81,2.32]
[1732102325446,9.31504166,236.91,236.81,2.32]
[1732102325653,28.23865368,236.91,236.83,10.26962087]
[1732102325847,233.3280664,236.96,236.83,10.26962087]
[1732102326053,233.3280664,236.96,236.81,2.32]
[1732102326054,38.52064816,236.95,236.81,2.32]
[1732102326252,28.25102729,236.94,236.81,2.32]
[1732102326552,28.25102729,236.93,236.81,2.32]
[1732102326753,28.25102729,236.92,236.81,2.32]
[1732102326955,10.55258609,236.91,236.81,2.32]
[1732102327156,10.26962087,236.95,236.81,2.32]
[1732102327352,28.25126622,236.94,236.81,2.32]
[1732102327554,28.25126622,236.93,236.81,2.32]
[1732102327752,10.26962087,236.95,236.81,2.32]
[1732102327753,28.25126622,236.92,236.81,2.32]
[1732102327950,10.55269722,236.91,236.81,2.32]
[1732102328154,10.26962087,236.95,236.81,2.32]
[1732102328353,28.25669481,236.94,236.81,2.32]
[1732102328554,28.25669481,236.93,236.81,2.32]
[1732102328751,10.55470337,236.92,236.81,2.32]
[1732102328950,28.25669481,236.92,236.81,2.32]
[1732102329257,28.25669481,236.91,236.81,2.32]
[1732102329455,10.55470337,236.9,236.81,2.32]
[1732102329656,28.25669481,236.9,236.81,2.32]
[1732102329859,28.25669481,236.89,236.81,2.32]
[1732102330056,241.81148727,236.95,236.82,2.3]
[1732102330251,19.88002333,236.94,236.82,2.3]
[1732102330452,19.88002333,236.93,236.82,2.3]
[1732102330756,19.88002333,236.92,236.82,2.3]
[1732102330956,28.26298313,236.91,236.82,2.3]
[1732102331252,28.26298313,236.9,236.82,2.3]
[1732102331455,10.55710287,236.89,236.82,2.3]
[1732102331659,10.26962087,236.95,236.82,2.3]
[1732102331862,28.27971494,236.94,236.82,2.3]
[1732102332061,28.27971494,236.93,236.82,2.3]
[1732102332262,19.89176442,236.92,236.82,2.3]
[1732102332559,28.27971494,236.91,236.82,2.3]
[1732102332754,28.27971494,236.9,236.82,2.3]
[1732102332955,28.27971494,236.89,236.82,2.3]
[1732102333155,28.27971494,236.88,236.8,10.26962087]
[1732102333353,10.26962087,236.95,236.81,2.3]
[1732102333553,10.26962087,236.92,236.81,2.3]
[1732102333757,28.2785165,236.91,236.81,2.3]
[1732102333955,28.2785165,236.9,236.81,2.3]
[1732102334258,28.2785165,236.89,236.81,2.3]
[1732102334460,28.2785165,236.88,236.81,2.3]
[1732102334761,28.2785165,236.87,236.81,2.3]
[1732102334961,231.9512264,236.97,236.83,10.26962087]
[1732102335160,28.29108813,236.96,236.83,10.26962087]
[1732102335356,28.29108813,236.95,236.83,10.26962087]
[1732102335563,28.29108813,236.94,236.83,10.26962087]
[1732102335766,28.29108813,236.93,236.83,10.26962087]
[1732102336057,28.29108813,236.92,236.83,10.26962087]
[1732102336264,28.29108813,236.91,236.84,2.3]
[1732102336561,28.29108813,236.9,236.85,2.3]
[1732102336757,28.29108813,236.89,236.85,2.3]
[1732102336957,28.29108813,236.88,236.85,2.3]
[1732102337156,10.26962087,236.95,236.85,2.3]
[1732102337462,28.29771388,236.94,236.85,2.3]
[1732102337659,28.29771388,236.93,236.85,2.3]
[1732102337963,28.29771388,236.92,236.85,2.3]
[1732102338158,28.29771388,236.91,236.85,2.3]
[1732102338457,28.29771388,236.9,236.85,2.3]
[1732102338663,10.57003427,236.89,236.85,2.3]
[1732102338862,12.78429427,236.97,236.85,2.3]
[1732102339158,28.30895044,236.96,236.85,2.3]
[1732102339365,28.30895044,236.95,236.85,2.3]
[1732102339565,19.91232491,236.94,236.85,2.3]
[1732102339760,10.57425412,236.93,236.85,2.3]
[1732102339961,10.57425412,236.92,236.85,2.3]
[1732102340265,2.21426,236.97,236.85,2.3]
[1732102340464,17.72970148,236.96,236.85,2.3]
[1732102340660,28.30103397,236.95,236.81,10.26962087]
[1732102340966,28.30103397,236.94,236.82,2.3]
[1732102341168,28.30103397,236.93,236.82,2.3]
[1732102341364,28.29361753,236.92,236.82,2.3]
[1732102341564,1.7689,236.95,236.82,2.3]
[1732102341960,30.06304057,236.95,236.82,2.3]
[1732102342158,28.29414057,236.94,236.82,2.3]
[1732102342564,28.29414057,236.93,236.82,2.3]
[1732102342766,28.29414057,236.92,236.82,2.3]
[1732102343064,1.7689,236.95,236.82,2.3]
[1732102343567,30.05904072,236.95,236.82,2.3]
[1732102343765,28.29014072,236.94,236.82,2.3]
[1732102343961,28.29014072,236.93,236.82,2.3]
[1732102344168,28.29014072,236.92,236.82,2.3]
[1732102344362,28.29014072,236.92,236.79,2.3]
[1732102344363,28.29014072,236.91,236.79,2.3]
[1732102344668,10.26962087,236.89,236.77,2.3]
[1732102344863,10.56725026,236.88,236.77,2.3]
[1732102345066,21.6212528,236.88,236.77,2.3]
[1732102345262,1.7248,236.88,236.78,2.3]
[1732102345464,30.00665692,236.88,236.78,2.3]
[1732102345768,1.7248,236.88,236.78,2.3]
[1732102346063,19.44233852,236.88,236.76,2.28]
[1732102346362,28.28153545,236.87,236.76,2.28]
[1732102346566,1.7248,236.88,236.76,2.28]
[1732102346869,19.4417994,236.88,236.76,2.28]
[1732102347166,19.89247049,236.87,236.76,2.28]
[1732102347367,1.7248,236.88,236.76,2.28]
[1732102347368,10.56439408,236.86,236.76,2.28]
[1732102347564,10.56439408,236.85,236.76,2.28]
[1732102347861,1.7248,236.88,236.76,2.28]
[1732102348069,19.44259052,236.88,236.76,2.28]
[1732102348369,28.2818914,236.87,236.76,2.28]
[1732102348667,1.8266,236.9,236.81,10.26962087]
[1732102348867,1.8266,236.9,236.82,2.28]
[1732102349866,21.72366871,236.9,236.82,2.28]
[1732102350061,8.39004809,236.89,236.82,2.28]
[1732102350363,1.8048,236.94,236.82,2.28]
[1732102350666,21.70315103,236.94,236.82,2.28]
[1732102350865,28.28912023,236.93,236.82,2.28]
[1732102351066,19.89835103,236.92,236.82,2.28]
[1732102351369,19.89835103,236.91,236.82,2.28]
[1732102351565,8.3907692,236.92,236.82,2.28]
[1732102351869,19.89682727,236.91,236.82,2.28]
[1732102352167,1.8048,236.94,236.82,2.28]
[1732102352361,19.52382447,236.94,236.82,2.28]
[1732102352671,28.28394549,236.93,236.82,2.28]
[1732102352869,28.28394549,236.92,236.82,2.28]
[1732102353074,28.28394549,236.91,236.82,2.28]
[1732102353264,1.8048,236.94,236.82,2.28]